bitfinex/quotes_ETHUSD_20240927
["timestamp","ask_amount","ask_price","bid_price","bid_amount"]
[1727438154975,0.8277,2658.3,2658.1,3.76208]
[1727438155275,0.8277,2658.3,2658.2,3.76194]
[1727438156480,1.24,2658.6,2658.2,7.52388]
[1727438156481,1.9924,2658.6,2658.2,7.52388]
[1727438156972,1.9924,2658.6,2658.2,4.597568]
[1727438157976,1.24,2658.6,2658.3,0.07523199]
[1727438158275,1.24,2658.6,2658.2,4.597488]
[1727438158276,1.24,2658.6,2658.5,3.76151]
[1727438159268,1.24,2658.6,2658.4,3.76165]
[1727438159980,1.24,2658.7,2658.5,0.7896]
[1727438160139,1.24,2658.7,2658.6,0.42633826]
[1727438160343,1.24,2658.9,2658.6,0.42633826]
[1727438162658,5.00108,2658.9,2658.6,0.42633826]
[1727438163406,1.24,2658.9,2658.6,0.42633826]
[1727438163555,1.24,2658.9,2658.6,4.18769826]
[1727438163757,1.24,2658.9,2658.7,0.41876983]
[1727438164569,1.24,2658.9,2658.8,3.76109]
[1727438164773,1.24,2658.9,2658.7,4.17999983]
[1727438166705,1.24,2658.9,2658.7,0.41876983]
[1727438167696,1.24,2658.9,2658.6,4.18762826]
[1727438168289,1.24,2658.9,2658.6,0.42633826]
[1727438168523,1.24,2658.9,2658.4,7.5232]
[1727438169015,1.24,2658.9,2658.5,3.76149]
[1727438169179,2.993402,2658.9,2658.4,3.76163]
[1727438169381,2.993402,2658.9,2658.5,3.7615]
[1727438169920,1.24,2658.9,2658.6,3.7613]
[1727438170418,1.24,2658.9,2658.5,3.76142]
[1727438170776,1.24,2658.9,2658.6,3.7613]
[1727438171010,1.24,2658.9,2658.7,3.83641893]
[1727438171214,1.24,2658.9,2658.7,3.83636893]
[1727438171417,1.24,2658.9,2658.7,7.59750893]
[1727438172112,1.24,2658.9,2658.8,3.76109]
[1727438172528,1.24,2658.9,2658.7,3.83642893]
[1727438172814,1.24,2658.9,2658.7,4.76083907]
[1727438174714,1.24,2659.1,2658.7,4.76083907]
[1727438175608,1.24,2659.1,2658.7,8.52197907]
[1727438175819,1.24,2659.1,2658.7,4.68560014]
[1727438175998,1.24,2659.1,2658.7,4.76081624]
[1727438176354,1.24,2659.1,2658.8,0.55939162]
[1727438177993,1.24,2659.1,2658.8,0.55939162]
[1727438179831,1.24,2659.1,2658.6,0.90831612]
[1727438179987,1.24,2659.1,2658.7,3.76122]
[1727438182152,0.7517,2659.0,2658.7,3.0]
[1727438182349,0.7517,2659.0,2658.7,6.76122]
[1727438183959,2.505102,2659.0,2658.5,3.7615]
[1727438184255,2.505102,2659.0,2658.2,4.59007]
[1727438184256,2.581102,2658.6,2658.2,4.59007]
[1727438184439,2.581102,2658.6,2658.3,3.76177]
[1727438184759,2.581102,2658.6,2658.4,3.76158]
[1727438184942,2.581102,2658.6,2658.3,3.76177]
[1727438185125,2.581102,2658.6,2658.3,7.52348]
[1727438185325,2.581102,2658.6,2658.3,4.596878]
[1727438185959,2.581102,2658.6,2658.1,7.52403]
[1727438186123,6.342502,2658.6,2658.1,3.76199]
[1727438186548,1.24,2658.5,2658.0,0.8173]
[1727438186759,1.24,2658.5,2657.8,3.0]
[1727438186760,0.8014,2658.3,2657.8,7.5797]
[1727438187068,0.8014,2658.3,2658.0,3.0]
[1727438187225,4.56321,2658.3,2657.8,5.013055]
[1727438187550,5.515342,2658.2,2657.8,3.8173]
[1727438187752,1.753402,2658.2,2657.8,3.0]
[1727438187956,1.753402,2658.2,2657.8,6.76242]
[1727438188455,1.753402,2658.0,2657.7,3.0]
[1727438188758,1.24,2658.1,2657.8,3.0]
[1727438188955,1.24,2658.1,2657.8,6.76248]
[1727438189857,1.24,2658.1,2657.8,3.0]
[1727438191432,1.753402,2658.0,2657.8,3.0]
[1727438192518,2.993402,2658.0,2657.8,3.0]
[1727438193574,1.24,2657.9,2657.7,3.76253]
[1727438193735,1.753402,2657.8,2657.5,3.76286]
[1727438194060,1.753402,2657.8,2657.6,3.7627]
[1727438194853,2.0454,2657.9,2657.6,3.7627]
[1727438195825,1.24,2657.9,2657.8,3.76251]
[1727438196027,1.24,2657.9,2657.8,7.63595183]
[1727438196937,1.24,2657.9,2657.8,7.56071]
[1727438198323,1.24,2658.3,2657.9,3.76229]
[1727438198659,1.24,2658.3,2658.1,3.76207]
[1727438199025,1.24,2658.3,2658.1,7.52407]
[1727438199226,1.24,2658.3,2658.2,3.76194]
[1727438200553,3.76123,2658.7,2658.1,4.5301]
[1727438200554,1.24,2658.5,2658.4,3.76166]
[1727438200736,1.24,2658.7,2658.4,3.76166]
[1727438201750,1.24,2658.7,2658.2,0.07522666]
[1727438201955,1.24,2658.7,2658.4,3.76163]
[1727438202262,1.24,2658.7,2658.6,3.76137]
[1727438203472,1.24,2658.7,2658.4,3.0]
[1727438204060,0.8242,2658.6,2658.4,3.0]
[1727438204277,2.0642,2658.6,2658.4,6.76165]
[1727438204785,2.0642,2658.6,2658.4,3.0]
[1727438205649,1.24,2658.6,2658.4,3.0]
[1727438205850,1.24,2658.6,2658.4,7.475431]
[1727438208685,1.24,2658.6,2658.5,4.51721]
[1727438210190,1.24,2658.8,2658.5,4.51721]
[1727438210774,1.24,2658.8,2658.7,3.76123]
[1727438212272,1.24,2658.8,2658.6,3.76135]
[1727438213565,2.521902,2658.7,2658.4,3.0]
[1727438214073,2.521902,2658.7,2658.3,3.0]
[1727438214293,2.521902,2658.7,2658.3,6.76178]
[1727438215004,6.283202,2658.7,2658.3,3.0]
[1727438215896,3.76141,2658.6,2658.1,3.0]
[1727438216208,3.76141,2658.6,2658.0,4.55963]
[1727438216209,5.00141,2658.6,2658.3,3.0]
[1727438216366,1.24,2658.6,2658.3,3.0]
[1727438217605,1.24,2658.6,2658.3,6.76179]
[1727438218170,1.24,2658.6,2658.3,3.0]
[1727438219770,1.24,2658.6,2658.3,6.76177]
[1727438219975,1.24,2658.6,2658.3,3.0]
[1727438220929,1.24,2658.6,2658.4,3.76165]
[1727438222114,1.24,2658.6,2658.3,6.76179]
[1727438223198,1.24,2658.6,2658.4,3.76165]
[1727438226302,1.24,2658.6,2658.4,3.76158]
[1727438227796,1.24,2658.6,2658.3,6.76178]
[1727438228105,1.24,2658.6,2658.4,3.76163]
[1727438228510,1.24,2658.6,2658.3,6.76178]
[1727438229439,1.24,2658.6,2658.4,3.76156]
[1727438230119,1.24,2658.6,2658.4,3.76157]
[1727438233024,1.24,2658.6,2658.4,7.52316]
[1727438233238,1.24,2658.6,2658.4,3.76157]
[1727438233801,1.24,2658.6,2658.4,7.52315]
[1727438234003,1.24,2658.6,2658.3,3.7923]
[1727438234216,1.24,2658.6,2658.4,3.76166]
[1727438234810,1.24,2658.6,2658.4,3.76157]
[1727438235126,1.24,2658.6,2658.4,7.52316]
[1727438235705,1.24,2658.6,2658.4,3.76157]
[1727438237730,1.24,2658.6,2658.2,10.52362]
[1727438238028,1.24,2658.6,2658.2,6.7618]
[1727438238223,1.24,2658.6,2658.3,3.76176]
[1727438240546,1.24,2658.6,2658.4,3.76163]
[1727438240730,1.24,2658.6,2658.4,7.52321]
[1727438241240,1.24,2658.6,2658.5,3.76151]
[1727438243954,1.24,2658.9,2658.8,4.59249]
[1727438244191,1.24,2658.9,2658.8,5.351739]
[1727438248778,2.545902,2659.3,2658.8,4.111739]
[1727438249084,2.545902,2659.3,2658.8,3.35249]
[1727438250084,3.76033,2659.4,2658.8,3.35249]
[1727438250284,6.296132,2659.4,2658.8,3.35249]
[1727438250593,1.753402,2659.2,2658.7,3.76122]
[1727438250742,2.3830232,2659.2,2658.7,3.76122]
[1727438251381,6.1436432,2659.2,2658.7,3.76122]
[1727438251650,1.753402,2658.8,2658.3,7.52341]
[1727438251930,1.753402,2658.8,2658.4,3.76159]
[1727438253735,1.753402,2658.6,2658.2,3.7892]
[1727438254034,1.753402,2658.6,2658.2,7.55112]
[1727438254715,1.753402,2658.6,2658.2,6.76192]
[1727438254909,1.753402,2658.6,2658.2,3.0]
[1727438255122,1.753402,2658.6,2658.2,6.76193]
[1727438255860,1.753402,2658.6,2658.2,3.0]
[1727438256068,1.753402,2658.6,2658.3,3.7618]
[1727438256924,1.753402,2658.6,2658.2,3.0]
[1727438257352,1.753402,2658.6,2658.1,7.52394]
[1727438257537,1.753402,2658.6,2658.1,7.52396]
[1727438257924,5.514782,2658.6,2658.1,3.76196]
[1727438258365,1.753402,2658.6,2658.1,7.52397]
[1727438258561,1.753402,2658.6,2658.1,3.76196]
[1727438259572,1.753402,2658.6,2658.2,3.76187]
[1727438260584,1.753402,2658.6,2658.1,3.76196]
[1727438261364,1.753402,2658.6,2658.2,3.76192]
[1727438262568,6.310712,2658.8,2658.3,4.59099]
[1727438262722,6.88413618,2658.8,2658.3,4.59099]
[1727438263270,3.12302618,2658.8,2658.3,4.59099]
[1727438263444,3.76125,2658.7,2658.3,3.76169]
[1727438263623,3.76125,2658.7,2658.2,3.76191]
[1727438263624,1.753402,2658.6,2658.2,3.76191]
[1727438264165,5.0231038,2658.7,2658.2,3.76191]
[1727438264325,6.7765058,2658.7,2658.2,3.76191]
[1727438264931,3.76145,2658.6,2658.1,0.7725]
[1727438265176,3.76145,2658.6,2658.1,4.53451]
[1727438265472,3.0152558,2658.7,2658.0,7.52422]
[1727438265473,0.7958,2658.4,2658.0,7.52422]
[1727438265766,0.7958,2658.4,2658.0,3.76211]
[1727438267500,0.7958,2658.4,2658.0,7.52426]
[1727438268303,0.7958,2658.4,2658.1,3.76207]
[1727438274312,0.7958,2658.4,2658.1,4.890388]
[1727438275490,0.7958,2658.4,2658.1,3.76207]
[1727438275913,0.7958,2658.4,2658.0,3.76211]
[1727438276123,0.7958,2658.4,2658.1,3.76207]
[1727438277679,1.753402,2658.6,2658.3,3.76174]
[1727438278476,1.753402,2658.6,2658.2,3.76184]
[1727438280220,1.753402,2658.6,2658.2,7.52371]
[1727438280446,1.753402,2658.6,2658.2,3.76184]
[1727438280718,5.514802,2658.6,2658.2,3.76184]
[1727438281282,3.76153,2658.5,2658.0,3.76212]
[1727438281515,2.517902,2658.4,2658.0,3.76212]
[1727438281946,6.279572,2658.4,2657.9,6.76235]
[1727438282131,1.753402,2658.0,2657.8,3.0]
[1727438282329,1.753402,2658.0,2657.9,3.0]
[1727438282530,1.753402,2658.2,2657.9,6.76236]
[1727438283364,1.753402,2658.2,2657.7,3.00550895]
[1727438283523,1.753402,2658.2,2657.9,3.0]
[1727438288474,1.753402,2658.2,2657.9,6.76234]
[1727438289550,1.753402,2658.2,2657.9,6.76227]
[1727438291586,1.753402,2658.2,2657.9,3.0]
[1727438291885,0.7563,2658.1,2657.8,3.76246]
[1727438292280,5.515622,2658.0,2657.7,0.00550895]
[1727438293052,0.8027,2657.9,2657.7,0.00550895]
[1727438293855,4.56506,2657.9,2657.7,0.00550895]
[1727438294255,5.5731282,2657.9,2657.7,0.00550895]
[1727438294456,1.8107682,2657.9,2657.7,0.00550895]
[1727438295456,1.753402,2657.8,2657.7,0.00550895]
[1727438295792,6.319612,2657.8,2657.7,0.00550895]
[1727438296548,8.29167927,2657.8,2657.7,0.00550895]
[1727438297176,6.319612,2657.8,2657.7,0.00550895]
[1727438297574,8.29235714,2657.8,2657.7,0.00550895]
[1727438297778,9.73456327,2657.8,2657.7,0.00550895]
[1727438299195,7.76181813,2657.8,2657.7,0.00550895]
[1727438299402,9.73328817,2657.8,2657.7,0.00550895]
[1727438300119,10.28328817,2657.8,2657.7,0.00550895]
[1727438300280,8.31181813,2657.8,2657.7,0.00550895]
[1727438300475,10.6791123,2657.8,2657.7,0.00550895]
[1727438300701,6.55841613,2657.8,2657.7,0.00550895]
[1727438301023,10.6766538,2657.8,2657.7,0.00550895]
[1727438301176,8.31181813,2657.8,2657.7,0.00550895]
[1727438302305,10.35697111,2657.8,2657.7,0.00550895]
[1727438306317,12.32432233,2657.8,2657.7,0.00550895]
[1727438307577,12.3234491,2657.8,2657.7,0.00550895]
[1727438309420,10.35697111,2657.8,2657.7,0.00550895]
[1727438312843,12.32224909,2657.8,2657.7,0.00550895]
[1727438313355,10.35697111,2657.8,2657.7,0.00550895]
[1727438313655,10.35697111,2657.8,2656.5,0.8179]
[1727438313656,3.76404,2656.8,2656.5,0.8179]
[1727438313833,7.52806,2656.8,2656.5,0.8179]
[1727438314354,3.76402,2656.8,2656.5,0.8179]
[1727438314563,3.76409,2656.7,2656.5,0.8179]
[1727438316773,3.76393,2656.8,2656.5,0.8179]
[1727438317969,3.7638,2656.9,2656.5,1.576151]
[1727438318174,3.7638,2656.9,2656.6,0.8249]
[1727438321438,3.76359,2657.1,2656.6,0.8249]
[1727438321785,7.52718,2657.1,2656.7,0.7838]
[1727438322268,3.76359,2657.1,2656.7,0.7838]
[1727438322633,3.76366,2657.0,2656.7,0.7838]
[1727438322831,3.76359,2657.1,2656.7,0.7838]
[1727438323085,3.76366,2657.0,2656.7,1.32207491]
[1727438324306,3.76385,2656.9,2656.7,1.32207491]
[1727438324492,3.76385,2656.9,2656.7,0.7838]
[1727438324990,3.76392,2656.8,2656.7,0.7838]
[1727438326059,5.51720352,2656.9,2656.7,0.7838]
[1727438326266,9.28108352,2656.9,2656.7,0.7838]
[1727438327783,5.51720352,2656.9,2656.7,0.7838]
[1727438327986,3.76392,2656.8,2656.7,0.7838]
[1727438330496,3.76392,2656.8,2656.3,6.76456]
[1727438330497,3.76392,2656.8,2656.4,0.752]
[1727438334425,5.51749352,2656.7,2656.4,0.752]
[1727438334721,3.76423,2656.6,2656.4,0.752]
[1727438336623,5.51752352,2656.7,2656.4,0.752]
[1727438338022,5.51752352,2656.7,2656.4,3.752]
[1727438338241,3.76394,2656.8,2656.4,3.752]
[1727438338448,5.51718352,2656.9,2656.4,4.880137]
[1727438339599,5.51718352,2656.9,2656.5,3.76433]
[1727438340501,5.51718352,2656.9,2656.4,4.880137]
[1727438340703,5.51718352,2656.9,2656.4,3.752]
[1727438340902,5.51718352,2656.9,2656.4,7.51647]
[1727438344822,7.48867805,2656.9,2656.4,7.51647]
[1727438348137,5.51718352,2656.9,2656.4,7.51647]
[1727438348650,7.49449953,2656.9,2656.4,7.51647]
[1727438349052,5.51718352,2656.9,2656.4,7.51647]
[1727438349422,8.70344948,2656.9,2656.4,3.752]
[1727438349621,5.51755352,2656.7,2656.4,0.752]
[1727438350423,5.51755352,2656.7,2656.4,3.752]
[1727438350627,1.75340352,2656.7,2656.4,3.752]
[1727438352920,3.76393,2656.8,2656.4,3.752]
[1727438353842,4.93990331,2656.9,2656.4,7.51648]
[1727438354145,8.70368331,2656.9,2656.4,7.51648]
[1727438356961,8.70368331,2656.9,2656.4,7.51648]
[1727438358762,8.70410009,2656.9,2656.4,7.51648]
[1727438358937,8.70410009,2656.9,2656.5,3.76432]
[1727438359274,4.94032009,2656.9,2656.6,0.8206]
[1727438360265,3.76365,2657.0,2656.7,3.76403]
[1727438360266,1.97796662,2657.0,2656.7,3.76403]
[1727438360473,1.97796662,2656.9,2656.6,0.8206]
[1727438361173,1.97796662,2656.8,2656.6,0.8206]
[1727438361472,1.97796662,2656.9,2656.6,0.8206]
[1727438361662,1.97796662,2656.8,2656.6,0.8206]
[1727438361840,1.97796662,2656.9,2656.6,0.8206]
[1727438363567,1.97796662,2656.9,2656.6,4.58479]
[1727438363769,1.97796662,2656.9,2656.6,0.8206]
[1727438363972,1.97796662,2656.9,2656.6,4.58474]
[1727438364160,1.97796662,2657.0,2656.6,4.58474]
[1727438364535,1.97796662,2656.9,2656.6,4.58474]
[1727438365057,1.97796662,2657.0,2656.6,4.58474]
[1727438365263,1.97796662,2656.9,2656.6,4.58474]
[1727438365570,1.97796662,2657.0,2656.6,4.58474]
[1727438365770,1.97796662,2656.9,2656.6,4.58474]
[1727438366160,1.97796662,2657.0,2656.6,4.58474]
[1727438366780,1.97796662,2656.9,2656.6,4.58474]
[1727438367778,1.97796662,2657.0,2656.6,4.58474]
[1727438367982,3.76357,2657.1,2656.6,4.58474]
[1727438367983,1.97796662,2656.9,2656.6,4.5847]
[1727438368211,1.97796662,2657.0,2656.7,3.76405]
[1727438369262,1.97796662,2656.9,2656.7,3.76405]
[1727438370665,1.97796662,2656.9,2656.6,4.58479]
[1727438372572,1.97796662,2656.9,2656.4,3.0]
[1727438372573,4.54017014,2656.8,2656.4,3.0]
[1727438372764,1.75340352,2656.6,2656.4,6.76444]
[1727438378923,1.75340352,2656.6,2656.4,10.52884]
[1727438379123,1.75340352,2656.6,2656.4,6.76439]
[1727438379324,2.78702806,2656.8,2656.5,3.76435]
[1727438379325,4.54043158,2656.8,2656.5,3.76435]
[1727438379620,3.73163158,2656.8,2656.6,3.76419]
[1727438379823,1.97822806,2656.9,2656.6,3.76419]
[1727438380026,2.59198043,2656.9,2656.6,3.76419]
[1727438383234,1.5825043,2656.7,2656.6,3.76419]
[1727438386103,1.5825043,2656.8,2656.6,4.52669]
[1727438386796,1.5825043,2656.7,2656.6,4.52669]
[1727438387204,1.5825043,2656.7,2656.5,3.76433]
[1727438388403,1.5825043,2656.7,2656.5,3.76427]
[1727438388606,1.5825043,2656.7,2656.5,7.52854]
[1727438388830,1.5825043,2656.7,2656.5,3.76427]
[1727438389049,1.5825043,2656.7,2656.5,7.52852]
[1727438389243,1.5825043,2656.7,2656.5,3.76425]
[1727438389629,0.27062366,2656.7,2656.5,3.76425]
[1727438390508,0.86435765,2656.8,2656.5,3.76425]
[1727438391325,1.75340352,2656.9,2656.5,3.76425]
[1727438391922,1.75340352,2656.9,2656.4,0.7625]
[1727438392134,1.75340352,2656.9,2656.6,3.7642]
[1727438393113,1.75340352,2656.9,2656.4,0.7625]
[1727438393315,1.75340352,2656.9,2656.4,7.979603]
[1727438393511,3.76392,2656.8,2656.4,7.5269]
[1727438393711,2.51810352,2656.7,2656.4,3.0]
[1727438393944,2.51810352,2656.7,2656.3,3.0]
[1727438394333,2.51810352,2656.7,2656.3,6.76456]
[1727438394533,2.51810352,2656.7,2656.3,7.89553]
[1727438394733,2.51810352,2656.7,2656.3,6.76456]
[1727438395651,2.51810352,2656.7,2656.3,6.76461]
[1727438397512,4.4961202,2656.7,2656.3,6.76456]
[1727438397718,2.51810352,2656.7,2656.3,6.76456]
[1727438398149,2.51810352,2656.7,2656.3,6.76454]
[1727438398335,2.51810352,2656.7,2656.4,3.76448]
[1727438398519,2.51810352,2656.7,2656.3,10.52907]
[1727438399025,2.51810352,2656.7,2656.3,6.76453]
[1727438399654,2.51810352,2656.7,2656.3,10.52907]
[1727438399955,2.51810352,2656.7,2656.3,10.52908]
[1727438400161,2.51810352,2656.7,2656.3,6.76453]
[1727438400359,6.28218352,2656.7,2656.3,6.76453]
[1727438400572,3.76449,2656.4,2656.0,4.59586]
[1727438400864,3.76449,2656.4,2655.8,3.76528]
[1727438400865,1.75340352,2656.2,2655.9,3.76511]
[1727438401216,3.33591622,2656.2,2655.9,7.53022]
[1727438401441,3.33591622,2656.2,2655.9,3.76511]
[1727438401718,1.5825127,2656.2,2655.9,3.76511]
[1727438402145,1.5825127,2656.2,2655.9,7.53024]
[1727438402359,1.5825127,2656.3,2655.9,4.601224]
[1727438402556,1.5825127,2656.3,2656.2,0.8153]
[1727438402854,1.5825127,2656.4,2656.3,3.76462]
[1727438403159,1.5825127,2656.5,2656.3,3.76462]
[1727438403514,1.5825127,2656.5,2656.3,0.834468]
[1727438403722,1.5825127,2656.6,2656.4,3.76449]
[1727438404030,5.3467427,2656.6,2656.2,0.8153]
[1727438404230,1.75340352,2656.4,2656.1,3.0]
[1727438404438,2.4154127,2656.5,2656.2,3.76476]
[1727438404737,1.5825127,2656.6,2656.3,3.76462]
[1727438404932,5.3467227,2656.6,2656.1,10.5297]
[1727438405235,4.59753,2656.3,2655.8,3.0]
[1727438405424,2.4154127,2656.3,2655.7,4.58069]
[1727438405617,1.5825127,2656.3,2655.9,3.76512]
[1727438405835,1.5825127,2656.3,2655.9,7.53024]
[1727438406033,1.5825127,2656.3,2655.9,3.76512]
[1727438406565,1.5825127,2656.3,2655.9,3.7651]
[1727438406929,1.5825127,2656.3,2655.7,5.338729]
[1727438407124,2.57346634,2656.3,2655.8,3.76531]
[1727438407351,0.99095364,2656.3,2655.9,3.76518]
[1727438407541,5.3471027,2656.4,2655.9,3.76518]
[1727438408065,5.3471527,2656.3,2655.7,4.58066]
[1727438408268,4.58989,2656.2,2655.7,4.58066]
[1727438408563,7.92580622,2656.2,2655.7,3.76536]
[1727438409259,4.16101622,2656.2,2655.7,3.76536]
[1727438409423,2.4076127,2656.2,2655.7,3.76536]
[1727438409624,0.8251,2656.2,2655.7,3.76536]
[1727438410063,2.4076127,2656.2,2655.7,3.76536]
[1727438410261,0.8251,2656.2,2655.7,3.76536]
[1727438410969,0.8251,2656.2,2655.8,0.7914]
[1727438411260,7.49304677,2656.4,2655.7,3.76536]
[1727438411261,1.5825127,2656.4,2655.9,4.220876]
[1727438411474,5.73942325,2656.5,2656.0,0.7651]
[1727438411475,5.3468827,2656.5,2656.0,0.7651]
[1727438411670,1.5825127,2656.4,2656.0,0.7651]
[1727438412973,1.5825127,2656.7,2656.1,0.7577]
[1727438413126,5.3464727,2656.8,2656.3,3.76463]
[1727438413345,3.76419,2656.7,2656.3,0.452233]
[1727438413576,1.5825127,2656.7,2656.1,4.5225]
[1727438413750,3.76421,2656.6,2656.1,4.5225]
[1727438414145,4.51721,2656.6,2656.1,4.5225]
[1727438414583,4.51721,2656.6,2656.2,0.45225]
[1727438414948,9.8987227,2656.8,2656.2,4.21701]
[1727438415806,6.1346727,2656.8,2656.4,0.7837]
[1727438415948,3.76396,2656.8,2656.4,0.7837]
[1727438416290,5.3464727,2656.8,2656.4,1.283749]
[1727438416847,7.528,2656.8,2656.4,1.283749]
[1727438417071,5.3464727,2656.8,2656.4,1.283749]
[1727438417662,9.1104827,2656.8,2656.4,1.283749]
[1727438417864,5.3464727,2656.8,2656.4,1.283749]
[1727438418151,3.76396,2656.8,2656.5,0.5048289]
[1727438418548,7.52798,2656.8,2656.5,0.5048289]
[1727438418773,3.76396,2656.8,2656.4,0.7837]
[1727438419701,1.5825127,2656.9,2656.4,0.7837]
[1727438419988,5.3463227,2656.9,2656.5,0.815]
[1727438420162,3.76405,2656.8,2656.5,0.815]
[1727438420350,7.87372622,2656.9,2656.3,4.57958]
[1727438420547,7.87372622,2656.9,2656.4,0.803183]
[1727438420811,3.764,2656.8,2656.4,0.803183]
[1727438421108,2.3565127,2656.9,2656.4,4.567653]
[1727438421269,1.5825127,2656.9,2656.5,0.7847]
[1727438421872,1.5825127,2656.9,2656.5,4.54896]
[1727438422168,1.5825127,2656.9,2656.5,5.4606283]
[1727438422403,1.5825127,2656.9,2656.5,1.6963683]
[1727438422905,5.3462627,2657.0,2656.5,1.6963683]
[1727438423108,5.3463027,2656.9,2656.5,1.6963683]
[1727438423705,3.76379,2656.9,2656.5,1.6963683]
[1727438424070,1.5825127,2657.0,2656.6,4.31028283]
[1727438424407,1.5825127,2657.0,2656.7,0.8256]
[1727438425172,9.1098927,2657.0,2656.7,0.8256]
[1727438425375,3.76384,2656.9,2656.7,0.8256]
[1727438425909,3.76384,2656.9,2656.5,0.7909]
[1727438426090,5.51724352,2656.9,2656.5,0.7909]
[1727438426271,5.3461527,2657.0,2656.5,4.55523]
[1727438426601,5.3461527,2657.0,2656.5,5.387204]
[1727438428770,9.1099127,2657.0,2656.5,5.387204]
[1727438429179,9.1098827,2657.0,2656.5,5.387204]
[1727438429780,5.3461527,2657.0,2656.5,5.387204]
[1727438429977,3.7638,2656.9,2656.5,1.622874]
[1727438432113,3.76379,2656.9,2656.6,0.831944]
[1727438432316,3.76379,2656.9,2656.5,0.7909]
[1727438432812,3.76379,2656.9,2656.5,4.55523]
[1727438433372,1.5825127,2657.0,2656.5,4.55523]
[1727438433373,5.3462427,2657.0,2656.5,4.55523]
[1727438433573,3.76373,2657.0,2656.5,4.55523]
[1727438433886,5.3462427,2657.0,2656.5,5.387193]
[1727438434076,5.3462427,2657.0,2656.5,1.622863]
[1727438435685,3.76373,2657.0,2656.5,1.622863]
[1727438436080,3.76373,2657.0,2656.5,5.387153]
[1727438437291,5.3462427,2657.0,2656.5,5.387153]
[1727438437474,3.76373,2657.0,2656.5,5.387153]
[1727438438512,5.3461027,2657.1,2656.6,3.76418]
[1727438438675,5.3461027,2657.1,2656.7,0.7823]
[1727438439088,3.76371,2657.0,2656.7,0.7823]
[1727438442429,3.76379,2656.9,2656.7,0.7823]
[1727438445000,3.76365,2657.0,2656.7,0.7823]
[1727438447144,3.76378,2656.9,2656.7,0.7823]
[1727438447350,3.76392,2656.8,2656.7,0.7823]
[1727438447712,3.76378,2656.9,2656.7,0.7823]
[1727438448246,3.76392,2656.8,2656.7,0.7823]
[1727438448446,3.76378,2656.9,2656.7,0.7823]
[1727438450247,3.33591622,2657.1,2656.7,0.7823]
[1727438450442,3.76385,2656.9,2656.7,0.7823]
[1727438454342,7.52771,2656.9,2656.7,0.7823]
[1727438454547,3.76385,2656.9,2656.7,0.7823]
[1727438457055,1.5825127,2657.0,2656.7,0.7823]
[1727438457418,5.3462427,2657.0,2656.7,0.7823]
[1727438458056,1.5825127,2656.9,2656.7,0.7823]
[1727438463022,1.5825127,2656.9,2656.7,0.7823]
[1727438463564,1.5825127,2656.8,2656.7,0.7823]
[1727438463936,1.5825127,2656.9,2656.7,0.7823]
[1727438464238,1.5825127,2656.8,2656.7,0.7823]
[1727438464441,1.5825127,2656.9,2656.7,0.7823]
[1727438465466,1.5825127,2656.8,2656.7,0.7823]
[1727438465767,1.5825127,2656.9,2656.7,0.7823]
[1727438466179,1.5825127,2656.8,2656.7,0.7823]
[1727438466341,1.5825127,2656.9,2656.7,0.7823]
[1727438466544,1.5825127,2656.8,2656.7,0.7823]
[1727438467839,1.5825127,2656.9,2656.7,0.7823]
[1727438468439,1.5825127,2656.8,2656.7,0.7823]
[1727438469383,1.5825127,2656.9,2656.7,1.236952]
[1727438469583,1.5825127,2656.9,2656.8,3.76392]
[1727438469748,1.5825127,2657.0,2656.8,3.76392]
[1727438470264,1.5825127,2656.9,2656.8,3.76392]
[1727438470463,1.9776115,2657.1,2656.8,3.76392]
[1727438470464,1.5825127,2657.0,2656.8,4.594961]
[1727438470860,1.5825127,2657.0,2656.9,3.76378]
[1727438471041,1.5821785,2657.0,2656.8,4.594881]
[1727438471239,1.5821785,2657.0,2656.9,3.76378]
[1727438471552,1.5821785,2657.3,2657.1,3.0]
[1727438471748,1.5821785,2657.4,2657.3,7.56691]
[1727438471962,1.5821785,2657.6,2657.4,3.76306]
[1727438472380,1.5821785,2657.7,2657.4,3.76306]
[1727438472594,1.5821785,2657.7,2657.4,0.87987914]
[1727438473499,1.5821785,2657.8,2657.4,4.64291914]
[1727438473805,1.5821785,2657.8,2657.5,4.60759191]
[1727438473955,1.5821785,2657.8,2657.5,0.84466191]
[1727438474358,1.5821785,2657.9,2657.5,0.84466191]
[1727438474567,1.5821785,2657.9,2657.5,4.60749191]
[1727438474869,1.5821785,2657.9,2657.5,0.84466191]
[1727438476259,7.09791202,2658.0,2657.5,0.84466191]
[1727438476464,7.09791202,2658.0,2657.6,0.46076519]
[1727438476465,5.3445085,2658.0,2657.6,0.46076519]
[1727438476668,3.76233,2658.0,2657.7,0.8255]
[1727438476869,5.3445085,2658.0,2657.7,0.8255]
[1727438477582,3.33558202,2658.0,2657.7,0.8255]
[1727438477787,3.76237,2657.9,2657.4,4.58856]
[1727438477948,3.76237,2657.9,2657.4,5.723742]
[1727438480056,3.76237,2657.9,2657.4,5.723662]
[1727438480587,5.51568352,2658.0,2657.5,3.76286]
[1727438480797,2.3913785,2658.1,2657.6,0.9486522]
[1727438481009,1.5821785,2658.2,2657.8,3.76241]
[1727438481309,4.51718,2658.4,2657.9,0.7815]
[1727438482004,3.76168,2658.4,2657.9,0.7815]
[1727438482191,5.3437585,2658.5,2657.9,0.7815]
[1727438482370,3.76158,2658.5,2657.9,0.7815]
[1727438482578,5.3437585,2658.5,2657.9,0.7815]
[1727438482778,3.76158,2658.5,2657.9,0.7815]
[1727438483098,3.76158,2658.5,2657.9,4.54385]
[1727438483321,7.52321,2658.5,2657.9,4.54385]